fUSD/lending_fUSD_20260305
["ID","MTS","AMOUNT","RATE_DAILY","PERIOD"]
[407693224,1772683841562,-168.0,0.00043129,2]
[407693225,1772683841571,-227.0,0.00043359,7]
[407693226,1772683841580,-354.01529235,0.00043459,15]
[407693227,1772683841589,-7777.33293344,0.00043547,10]
[407693228,1772683841599,-500.0,0.00043637,120]
[407693229,1772683841609,-157.4,0.00043764,14]
[407693230,1772683841621,-6130.35197608,0.00043785,15]
[407693231,1772683841631,-10197.2245,0.00043829,2]
[407693232,1772683841641,-151.0,0.00043845,120]
[407693233,1772683841653,-151.0,0.00043845,60]
[407693234,1772683841663,-151.0,0.00043845,120]
[407693235,1772683841673,-151.0,0.00043845,14]
[407693236,1772683841685,-151.0,0.00043845,120]
[407693237,1772683841695,-151.0,0.00043845,120]
[407693238,1772683841704,-151.0,0.00043845,120]
[407693239,1772683841714,-151.0,0.00043845,120]
[407693240,1772683841724,-182.193436,0.00043845,120]
[407693241,1772683841733,-151.0,0.00043845,120]
[407693242,1772683841743,-151.0,0.00043845,120]
[407693243,1772683841753,-151.0,0.00043845,31]
[407693244,1772683841763,-218.852642,0.00043845,120]
[407693245,1772683841774,-151.0,0.00043845,120]
[407693246,1772683841784,-151.0,0.00043845,120]
[407693247,1772683841795,-151.0,0.00043845,120]
[407693248,1772683841806,-151.0,0.00043845,120]
[407693249,1772683841815,-601.55,0.0004392,120]
[407693250,1772683841825,-354.01529235,0.00043978,15]
[407693251,1772683841834,-1000.0,0.0004417,2]
[407693252,1772683841844,-310.0,0.000442,30]
[407693253,1772683841854,-866.0,0.000442,30]
[407693254,1772683841863,-304.0,0.000442,30]
[407693255,1772683841872,-993.0,0.000442,30]
[407693256,1772683841882,-157.283083,0.000442,120]
[407693257,1772683841892,-151.0,0.000442,120]
[407693258,1772683841901,-151.0,0.000442,120]
[407693259,1772683841910,-151.0,0.000442,120]
[407693260,1772683841920,-151.0,0.000442,120]
[407693261,1772683841929,-151.0,0.000442,60]
[407693262,1772683841938,-167.693843,0.000442,120]
[407693263,1772683841947,-163.974841,0.000442,120]
[407693264,1772683841956,-1500.577417,0.000442,120]
[407693265,1772683841965,-151.0,0.000442,120]
[407693266,1772683841974,-1500.577417,0.000442,120]
[407693267,1772683841984,-233.9,0.000443,60]
[407693268,1772683841994,-512.30810707,0.00044396,120]
[407693269,1772683842003,-502.75760338,0.00044396,120]
[407693270,1772683842013,-514.71178434,0.00044396,120]
[407693271,1772683842022,-527.15723226,0.00044396,120]
[407693272,1772683842031,-500.0,0.00044396,120]
[407693273,1772683842040,-17344.0,0.00044483,60]
[407693274,1772683842049,-354.01529235,0.00044498,15]
[407693275,1772683842058,-525.353261,0.00044501,120]
[407693276,1772683842077,-619.0,0.00044542,2]
[407693277,1772683842088,-151.0,0.00044542,30]
[407693278,1772683842099,-151.0,0.00044542,120]
[407693279,1772683842111,-179.680095,0.00044542,120]
[407693280,1772683842122,-153.248242,0.00044542,120]
[407693281,1772683842131,-151.0,0.00044542,120]
[407693282,1772683842142,-151.0,0.00044542,120]
[407693283,1772683842153,-1147.43,0.00044561,2]
[407693284,1772683842164,-6130.35197608,0.00044715,15]
[407693285,1772683842174,-350.0,0.00044885,3]
[407693286,1772683842183,-192.25,0.00045,30]
[407693287,1772683842194,-354.01529235,0.00045017,15]
[407693288,1772683842203,-200.0,0.00045116,120]
[407693289,1772683842213,-157.4,0.0004522,14]
[407693290,1772683842222,-1382.82,0.00045228,120]
[407693291,1772683842232,-1045.052821,0.00045252,2]
[407693292,1772683842243,-550.0,0.00045276,2]
[407693293,1772683842253,-249.0,0.00045276,2]
[407693294,1772683842263,-708.0,0.00045276,2]
[407693295,1772683842272,-150.0,0.00045276,2]
[407693296,1772683842282,-257.0,0.00045276,2]
[407693297,1772683842292,-496.45,0.00045367,120]
[407693298,1772683842302,-354.01529235,0.00045537,15]
[407693299,1772683842315,-846.0,0.00045555,16]
[407693300,1772683842325,-151.0,0.00045555,120]
[407693301,1772683842337,-6130.35197608,0.00045646,15]
[407693302,1772683842348,-503.46271357,0.0004565,30]
[407693303,1772683842359,-273.797149,0.0004565,120]
[407693304,1772683842369,-155.071498,0.0004565,30]
[407693305,1772683842379,-162.961876,0.0004565,120]
[407693306,1772683842391,-241.823434,0.0004565,120]
[407693307,1772683842401,-181.319399,0.0004565,120]
[407693308,1772683842411,-151.0,0.0004565,120]
[407693309,1772683842421,-224.980851,0.0004565,120]
[407693310,1772683842430,-151.0,0.0004565,120]
[407693311,1772683842440,-151.0,0.0004565,120]
[407693312,1772683842450,-500.0,0.00045652,120]
[407693313,1772683842459,-1341.0,0.0004575,2]
[407693314,1772683842469,-1228.0,0.0004576,2]
[407693315,1772683842479,-1212.0,0.00045785,2]
[407693316,1772683842489,-921.0,0.00045785,2]
[407693317,1772683842499,-5983.0,0.00045785,2]
[407693318,1772683842509,-2459.0,0.00045785,2]
[407693319,1772683842519,-800.08,0.000458,120]
[407693320,1772683842528,-5000.0,0.000459,120]
[407693321,1772683842538,-17344.0,0.00045903,60]
[407693322,1772683842549,-151.0,0.00045903,120]
[407693323,1772683842559,-151.0,0.00045903,120]
[407693324,1772683842568,-151.0,0.00045903,120]
[407693325,1772683842579,-151.0,0.00045903,120]
[407693326,1772683842591,-151.0,0.00045903,120]
[407693327,1772683842602,-151.0,0.00045903,120]
[407693328,1772683842612,-151.0,0.00045903,120]
[407693330,1772683842621,-151.0,0.00045903,120]
[407693332,1772683842631,-151.0,0.00045903,120]
[407693334,1772683842640,-151.0,0.00045903,120]
[407693336,1772683842650,-151.0,0.00045903,120]
[407693339,1772683842660,-151.0,0.00045903,120]
[407693341,1772683842670,-151.0,0.00045903,120]
[407693342,1772683842679,-151.0,0.00045903,7]
[407693343,1772683842688,-234.605568,0.00045903,7]
[407693344,1772683842699,-562.0,0.00045924,2]
[407693345,1772683842708,-150.0,0.00045924,2]
[407693347,1772683842717,-150.0,0.00045924,2]
[407693349,1772683842726,-297.0,0.00045924,2]
[407693351,1772683842736,-192.21235652,0.00045999,120]
[407693353,1772683842746,-200.0,0.00045999,120]
[407693355,1772683842755,-500.0,0.00045999,120]
[407693356,1772683842765,-500.0,0.00045999,120]
[407693357,1772683842774,-500.0,0.00045999,120]
[407693358,1772683842783,-500.0,0.00045999,30]
[407693359,1772683842793,-300.0,0.00045999,30]
[407693360,1772683842803,-666.0,0.00045999,30]
[407693361,1772683842812,-300.0,0.00045999,30]
[407693362,1772683842822,-250000.0,0.00046,30]
[407693363,1772683842831,-151.0,0.00046,120]
[407693364,1772683842841,-151.0,0.00046,120]
[407693365,1772683842851,-151.0,0.00046,120]
[407693366,1772683842860,-151.0,0.00046,120]
[407693367,1772683842869,-288.152702,0.00046,120]
[407693368,1772683842879,-151.0,0.00046,120]
[407693369,1772683842888,-151.0,0.00046,120]
[407693370,1772683842897,-151.0,0.00046,120]
[407693371,1772683842907,-185.329649,0.00046,120]
[407693372,1772683842917,-151.0,0.00046,120]
[407693373,1772683842926,-410.55905394,0.00046,120]
[407693374,1772683842935,-151.0,0.00046,30]
[407693375,1772683842945,-151.0,0.00046,120]
[407693376,1772683842955,-151.0,0.00046,120]
[407693377,1772683842964,-253.337625,0.00046,120]
[407693378,1772683842974,-151.0,0.00046,120]
[407693379,1772683842983,-151.0,0.00046,14]
[407693380,1772683842992,-151.0,0.00046,120]
[407693381,1772683843002,-151.0,0.00046,120]
[407693382,1772683843012,-151.0,0.00046,31]
[407693383,1772683843022,-151.0,0.00046,120]
[407693384,1772683843031,-151.0,0.00046,120]
[407693385,1772683843040,-151.0,0.00046,15]
[407693386,1772683843050,-151.0,0.00046,15]
[407693387,1772683843060,-151.0,0.00046,120]
[407693388,1772683843069,-177.978194,0.00046,14]
[407693389,1772683843078,-151.0,0.00046,120]
[407693390,1772683843088,-177.978194,0.00046,14]
[407693391,1772683843098,-177.978194,0.00046,14]
[407693392,1772683843107,-151.0,0.00046,120]
[407693393,1772683843117,-177.978194,0.00046,14]
[407693394,1772683843126,-151.0,0.00046,120]
[407693395,1772683843136,-151.0,0.00046,120]
[407693396,1772683843145,-151.0,0.00046,120]
[407693397,1772683843155,-151.0,0.00046,120]
[407693398,1772683843164,-151.0,0.00046,120]
[407693399,1772683843173,-151.0,0.00046,120]
[407693400,1772683843182,-151.0,0.00046,120]
[407693401,1772683843192,-298.300944,0.00046,120]
[407693402,1772683843202,-151.0,0.00046,120]
[407693403,1772683843212,-158.096256,0.00046,120]
[407693404,1772683843220,-151.0,0.00046,120]
[407693405,1772683843230,-230.225376,0.00046,120]
[407693406,1772683843239,-151.0,0.00046,120]
[407693407,1772683843249,-151.0,0.00046,7]
[407693408,1772683843259,-151.0,0.00046,120]
[407693409,1772683843332,-151.0,0.00046,120]
[407693410,1772683843342,-151.0,0.00046,120]
[407693411,1772683843351,-1500.577417,0.00046,120]
[407693412,1772683843361,-151.0,0.00046,120]
[407693413,1772683843370,-1500.577417,0.00046,120]
[407693414,1772683843380,-354.01529235,0.00046056,15]
[407693415,1772683843389,-62533.4959403,0.0004619,2]
[407693416,1772683843399,-350.0,0.00046322,5]
[407693417,1772683843410,-150.0,0.00046403,14]
[407693418,1772683843419,-150.0,0.00046507,14]
[407693419,1772683843428,-150.0,0.00046535,14]
[407693420,1772683843438,-993.00387801,0.00046552,24]
[407693421,1772683843447,-956.7649,0.00046552,120]
[407693422,1772683843456,-332.84532808,0.00046565,7]
[407693423,1772683843465,-10000.0,0.00046573,2]
[407693424,1772683843474,-500.0,0.00046575,120]
[407693425,1772683843484,-500.0,0.00046575,120]
[407693426,1772683843493,-500.0,0.00046575,120]
[407693427,1772683843503,-242.17145445,0.00046575,120]
[407693428,1772683843512,-500.0,0.00046575,120]
[407693429,1772683843521,-552.28332685,0.00046575,120]
[407693430,1772683843530,-500.0,0.00046575,120]
[407693431,1772683843539,-500.0,0.00046575,120]
[407693432,1772683843548,-500.0,0.00046575,120]
[407693433,1772683843557,-500.0,0.00046575,120]
[407693434,1772683843567,-501.23661243,0.00046575,120]
[407693435,1772683843576,-500.0,0.00046575,120]
[407693436,1772683843586,-500.0,0.00046575,120]
[407693437,1772683843595,-500.0,0.00046575,120]
[407693438,1772683843605,-500.0,0.00046575,120]
[407693439,1772683843614,-526.16659571,0.00046575,120]
[407693440,1772683843623,-609.62043288,0.00046575,120]
[407693441,1772683843632,-500.0,0.00046575,120]
[407693442,1772683843641,-500.0,0.00046575,120]
[407693443,1772683843650,-500.0,0.00046575,120]
[407693444,1772683843659,-500.0,0.00046575,120]
[407693445,1772683843668,-500.0,0.00046575,120]
[407693446,1772683843678,-570.86683112,0.00046575,120]
[407693447,1772683843687,-345.37733932,0.00046575,120]
[407693448,1772683843696,-594.01786822,0.00046575,120]
[407693449,1772683843705,-845.23,0.00046575,120]
[407693450,1772683843714,-845.23,0.00046575,120]
[407693451,1772683843723,-845.23,0.00046575,120]
[407693452,1772683843734,-845.23,0.00046575,120]
[407693453,1772683843754,-845.23,0.00046575,120]
[407693454,1772683843775,-500.0,0.00046575,120]
[407693455,1772683843792,-500.0,0.00046575,120]
[407693456,1772683843802,-500.0,0.00046575,120]
[407693457,1772683843812,-500.0,0.00046575,120]
[407693458,1772683843821,-500.0,0.00046575,120]
[407693459,1772683843830,-500.0,0.00046575,120]
[407693460,1772683843840,-367.59452278,0.00046575,120]
[407693461,1772683843849,-500.0,0.00046575,120]
[407693462,1772683843858,-519.91883431,0.00046575,120]
[407693463,1772683843867,-500.0,0.00046575,120]
[407693464,1772683843877,-500.0,0.00046575,120]
[407693465,1772683843886,-500.0,0.00046575,120]
[407693466,1772683843895,-500.0,0.00046575,120]
[407693467,1772683843904,-500.0,0.00046575,120]
[407693468,1772683843914,-209.44010995,0.00046575,120]
[407693469,1772683843923,-500.0,0.00046575,120]
[407693470,1772683843932,-500.0,0.00046575,120]
[407693471,1772683843941,-500.0,0.00046575,120]
[407693472,1772683843950,-500.0,0.00046575,120]
[407693473,1772683843959,-500.0,0.00046575,120]
[407693474,1772683843968,-500.0,0.00046575,120]
[407693475,1772683843977,-500.0,0.00046575,120]
[407693476,1772683843986,-503.87642529,0.00046575,15]
[407693477,1772683843995,-500.0,0.00046575,120]
[407693478,1772683844005,-500.0,0.00046575,120]
[407693479,1772683844014,-500.0,0.00046575,120]
[407693480,1772683844023,-500.0,0.00046575,120]
[407693481,1772683844033,-500.0,0.00046575,120]
[407693482,1772683844042,-500.0,0.00046575,120]
[407693483,1772683844051,-500.0,0.00046575,120]
[407693484,1772683844060,-500.0,0.00046575,120]
[407693485,1772683844069,-500.0,0.00046575,120]
[407693486,1772683844078,-500.0,0.00046575,120]
[407693487,1772683844087,-500.0,0.00046575,120]
[407693488,1772683844096,-500.0,0.00046575,120]
[407693489,1772683844106,-500.0,0.00046575,120]
[407693490,1772683844115,-226.63793138,0.00046575,120]
[407693491,1772683844125,-500.0,0.00046575,120]
[407693492,1772683844134,-500.0,0.00046575,120]
[407693493,1772683844143,-500.0,0.00046575,120]
[407693494,1772683844152,-500.0,0.00046575,120]
[407693495,1772683844161,-290.83744602,0.00046575,120]
[407693496,1772683844170,-500.0,0.00046575,120]
[407693497,1772683844179,-493.40205222,0.00046575,120]
[407693498,1772683844189,-1017.69,0.00046575,120]
[407693499,1772683844198,-1017.69,0.00046575,120]
[407693500,1772683844207,-1017.69,0.00046575,120]
[407693501,1772683844215,-1017.69,0.00046575,120]
[407693502,1772683844224,-500.0,0.00046575,60]
[407693503,1772683844233,-1017.69,0.00046575,120]
[407693504,1772683844242,-500.0,0.00046575,60]
[407693505,1772683844251,-500.0,0.00046575,120]
[407693506,1772683844260,-500.0,0.00046575,120]
[407693507,1772683844269,-500.0,0.00046575,120]
[407693508,1772683844277,-500.0,0.00046575,120]
[407693509,1772683844286,-500.0,0.00046575,120]
[407693510,1772683844295,-543.19096901,0.00046575,120]
[407693511,1772683844305,-500.0,0.00046575,120]
[407693513,1772683844316,-500.0,0.00046575,120]
[407693515,1772683844325,-500.0,0.00046575,120]
[407693516,1772683844334,-587.80840893,0.00046575,120]
[407693518,1772683844344,-500.0,0.00046575,120]
[407693520,1772683844353,-511.24128276,0.00046575,120]
[407693521,1772683844362,-500.0,0.00046575,120]
[407693522,1772683844371,-500.0,0.00046575,120]
[407693523,1772683844381,-500.0,0.00046575,120]
[407693524,1772683844390,-500.0,0.00046575,120]
[407693525,1772683844400,-500.0,0.00046575,120]
[407693526,1772683844409,-500.0,0.00046575,120]
[407693527,1772683844418,-500.0,0.00046575,120]
[407693528,1772683844428,-500.0,0.00046575,120]
[407693529,1772683844438,-500.0,0.00046575,120]
[407693530,1772683844448,-500.0,0.00046575,120]
[407693531,1772683844456,-500.0,0.00046575,120]
[407693532,1772683844466,-500.0,0.00046575,120]
[407693533,1772683844476,-500.0,0.00046575,120]
[407693534,1772683844486,-500.0,0.00046575,120]
[407693535,1772683844498,-500.0,0.00046575,120]
[407693536,1772683844507,-584.90784151,0.00046575,120]
[407693537,1772683844516,-500.0,0.00046575,60]
[407693538,1772683844524,-500.0,0.00046575,60]
[407693539,1772683844533,-486.30986205,0.00046575,120]
[407693540,1772683844542,-625.78,0.00046575,120]
[407693541,1772683844550,-625.78,0.00046575,120]
[407693542,1772683844560,-625.78,0.00046575,120]
[407693543,1772683844569,-625.78,0.00046575,120]
[407693544,1772683844578,-625.78,0.00046575,120]
[407693545,1772683844587,-500.0,0.00046575,120]
[407693546,1772683844596,-500.0,0.00046575,120]
[407693547,1772683844606,-500.0,0.00046575,120]
[407693548,1772683844615,-524.82534888,0.00046575,120]
[407693549,1772683844626,-500.0,0.00046575,120]
[407693550,1772683844636,-500.0,0.00046575,120]
[407693551,1772683844646,-500.0,0.00046575,120]
[407693552,1772683844656,-515.67521944,0.00046575,120]
[407693553,1772683844667,-500.0,0.00046575,120]
[407693554,1772683844676,-500.0,0.00046575,120]
[407693555,1772683844686,-500.0,0.00046575,120]
[407693556,1772683844696,-500.0,0.00046575,120]
[407693557,1772683844705,-500.0,0.00046575,120]
[407693558,1772683844715,-500.0,0.00046575,120]
[407693559,1772683844723,-500.0,0.00046575,120]
[407693560,1772683844733,-500.0,0.00046575,120]
[407693561,1772683844741,-500.0,0.00046575,120]
[407693562,1772683844753,-500.0,0.00046575,120]
[407693563,1772683844762,-500.0,0.00046575,120]
[407693564,1772683844771,-642.6395159,0.00046575,120]
[407693565,1772683844781,-500.0,0.00046575,120]
[407693566,1772683844791,-500.0,0.00046575,120]
[407693567,1772683844802,-500.0,0.00046575,120]
[407693568,1772683844814,-546.13554357,0.00046575,120]
[407693569,1772683844823,-500.0,0.00046575,120]
[407693570,1772683844833,-500.0,0.00046575,120]
[407693571,1772683844842,-500.0,0.00046575,120]
[407693572,1772683844851,-500.0,0.00046575,120]
[407693573,1772683844861,-232.31935542,0.00046575,120]
[407693574,1772683844871,-500.0,0.00046575,120]
[407693575,1772683844880,-508.2449776,0.00046575,120]
[407693576,1772683844889,-500.0,0.00046575,120]
[407693577,1772683844898,-500.0,0.00046575,120]
[407693578,1772683844908,-500.0,0.00046575,120]
[407693579,1772683844918,-603.77293306,0.00046575,120]
[407693580,1772683844927,-500.0,0.00046575,120]
[407693581,1772683844936,-500.0,0.00046575,120]
[407693582,1772683844946,-187.63618094,0.00046575,120]
[407693583,1772683844955,-500.0,0.00046575,120]
[407693584,1772683844964,-500.0,0.00046575,120]
[407693585,1772683844974,-500.0,0.00046575,120]
[407693586,1772683844983,-500.0,0.00046575,120]
[407693587,1772683844992,-500.0,0.00046575,120]
[407693588,1772683845001,-544.65328453,0.00046575,120]
[407693589,1772683845011,-500.0,0.00046575,120]
[407693590,1772683845021,-500.0,0.00046575,120]
[407693591,1772683845031,-500.0,0.00046575,120]
[407693592,1772683845041,-500.0,0.00046575,120]
[407693593,1772683845050,-500.0,0.00046575,120]
[407693594,1772683845060,-500.0,0.00046575,120]
[407693595,1772683845070,-500.0,0.00046575,120]
[407693596,1772683845081,-500.0,0.00046575,120]
[407693597,1772683845092,-591.64998116,0.00046575,120]
[407693598,1772683845102,-590.23758822,0.00046575,120]
[407693599,1772683845113,-500.0,0.00046575,120]
[407693600,1772683845124,-500.0,0.00046575,120]
[407693601,1772683845133,-641.2224304,0.00046575,120]
[407693602,1772683845144,-500.0,0.00046575,120]
[407693603,1772683845155,-500.0,0.00046575,120]
[407693604,1772683845164,-525.07433776,0.00046575,120]
[407693605,1772683845173,-506.32,0.00046575,120]
[407693606,1772683845184,-506.32,0.00046575,120]
[407693607,1772683845193,-851.5,0.00046575,7]
[407693608,1772683845204,-851.5,0.00046575,7]
[407693609,1772683845215,-851.5,0.00046575,7]
[407693610,1772683845226,-851.5,0.00046575,7]
[407693611,1772683845235,-500.0,0.00046575,120]
[407693612,1772683845246,-851.5,0.00046575,7]
[407693613,1772683845258,-500.0,0.00046575,120]
[407693614,1772683845268,-500.0,0.00046575,120]
[407693615,1772683845278,-500.0,0.00046575,120]
[407693616,1772683845288,-500.0,0.00046575,120]
[407693617,1772683845297,-500.0,0.00046575,120]
[407693618,1772683845307,-500.0,0.00046575,120]
[407693619,1772683845322,-500.0,0.00046575,120]
[407693620,1772683845331,-500.0,0.00046575,120]
[407693621,1772683845342,-500.0,0.00046575,120]
[407693622,1772683845351,-500.0,0.00046575,120]
[407693623,1772683845362,-521.00892056,0.00046575,120]
[407693624,1772683845372,-500.0,0.00046575,120]
[407693625,1772683845382,-565.58184463,0.00046575,120]
[407693626,1772683845392,-536.89279209,0.00046575,120]
[407693627,1772683845404,-538.47,0.00046575,120]
[407693628,1772683845415,-538.47,0.00046575,120]
[407693629,1772683845425,-534.3859112,0.00046575,4]
[407693630,1772683845434,-500.0,0.00046575,120]
[407693631,1772683845442,-537.57070769,0.00046575,120]
[407693632,1772683845451,-552.7087042,0.00046575,120]
[407693633,1772683845460,-523.58,0.00046575,120]
[407693634,1772683845470,-523.58,0.00046575,120]
[407693635,1772683845479,-523.58,0.00046575,120]
[407693636,1772683845488,-523.58,0.00046575,120]
[407693637,1772683845498,-523.58,0.00046575,120]
[407693638,1772683845507,-500.0,0.00046575,120]
[407693640,1772683845517,-529.87637975,0.00046575,120]
[407693641,1772683845526,-500.0,0.00046575,120]
[407693642,1772683845536,-500.0,0.00046575,120]
[407693643,1772683845545,-500.0,0.00046575,120]
[407693644,1772683845555,-500.0,0.00046575,120]
[407693645,1772683845564,-508.77610593,0.00046575,120]
[407693646,1772683845573,-500.0,0.00046575,120]
[407693647,1772683845582,-500.0,0.00046575,120]
[407693648,1772683845591,-500.0,0.00046575,120]
[407693649,1772683845602,-875.93,0.00046575,5]
[407693650,1772683845613,-875.93,0.00046575,5]
[407693651,1772683845622,-514.6783456,0.00046575,120]
[407693652,1772683845631,-500.0,0.00046575,120]
[407693653,1772683845641,-500.0,0.00046575,120]
[407693654,1772683845651,-500.0,0.00046575,120]
[407693655,1772683845660,-500.0,0.00046575,120]
[407693656,1772683845672,-563.33857495,0.00046575,120]
[407693657,1772683845683,-671.56,0.00046575,120]
[407693658,1772683845693,-671.56,0.00046575,120]
[407693659,1772683845703,-509.79649451,0.00046575,120]
[407693660,1772683845713,-671.56,0.00046575,120]
[407693661,1772683845722,-671.56,0.00046575,120]
[407693662,1772683845732,-671.56,0.00046575,120]
[407693663,1772683845741,-592.27,0.00046575,2]
[407693664,1772683845752,-592.27,0.00046575,2]
[407693665,1772683845761,-500.0,0.00046575,120]
[407693666,1772683845771,-161.33186953,0.00046575,120]
[407693667,1772683845781,-539.95024001,0.00046575,120]
[407693668,1772683845792,-500.0,0.00046575,120]
[407693669,1772683845802,-500.0,0.00046575,120]
[407693670,1772683845813,-229.32982714,0.00046575,120]
[407693671,1772683845823,-438.44716163,0.00046575,120]
[407693672,1772683845834,-588.8559211,0.00046575,120]
[407693673,1772683845844,-500.0,0.00046575,120]
[407693674,1772683845854,-554.8911672,0.00046575,120]
[407693675,1772683845863,-500.0,0.00046575,120]
[407693676,1772683845873,-500.0,0.00046575,120]
[407693677,1772683845883,-500.0,0.00046575,120]
[407693678,1772683845892,-500.0,0.00046575,120]
[407693679,1772683845901,-500.0,0.00046575,120]
[407693680,1772683845910,-500.0,0.00046575,120]
[407693681,1772683845921,-202.18410169,0.00046575,120]
[407693682,1772683845930,-206.79469531,0.00046575,120]
[407693684,1772683845940,-500.0,0.00046575,120]
[407693686,1772683845949,-500.0,0.00046575,120]
[407693688,1772683845959,-500.0,0.00046575,120]
[407693690,1772683845969,-634.17434062,0.00046575,120]
[407693692,1772683845979,-506.74717072,0.00046575,120]
[407693694,1772683845988,-3721.3,0.00046575,120]
[407693696,1772683845998,-3721.3,0.00046575,120]
[407693698,1772683846007,-500.0,0.00046575,120]
[407693699,1772683846017,-3721.3,0.00046575,120]
[407693700,1772683846026,-540.78648654,0.00046575,120]
[407693701,1772683846036,-500.0,0.00046575,120]
[407693702,1772683846045,-500.0,0.00046575,120]
[407693703,1772683846055,-500.0,0.00046575,120]
[407693704,1772683846066,-500.0,0.00046575,120]
[407693705,1772683846076,-500.0,0.00046575,120]
[407693706,1772683846086,-500.0,0.00046575,120]
[407693707,1772683846095,-500.0,0.00046575,120]
[407693708,1772683846104,-500.0,0.00046575,120]
[407693709,1772683846114,-500.0,0.00046575,120]
[407693710,1772683846123,-500.0,0.00046575,120]
[407693711,1772683846133,-500.0,0.00046575,120]
[407693712,1772683846142,-500.0,0.00046575,120]
[407693713,1772683846152,-500.0,0.00046575,120]
[407693714,1772683846162,-237.27071255,0.00046575,120]
[407693715,1772683846171,-500.0,0.00046575,120]
[407693716,1772683846180,-500.0,0.00046575,120]
[407693717,1772683846191,-151.0,0.00046575,120]
[407693718,1772683846200,-500.0,0.00046575,120]
[407693719,1772683846211,-500.0,0.00046575,120]
[407693720,1772683846222,-500.0,0.00046575,120]
[407693721,1772683846232,-596.69,0.00046575,120]
[407693722,1772683846241,-500.0,0.00046575,120]
[407693723,1772683846250,-596.69,0.00046575,120]
[407693724,1772683846261,-481.76677914,0.00046575,120]
[407693725,1772683846272,-500.0,0.00046575,120]
[407693726,1772683846282,-596.69,0.00046575,120]
[407693727,1772683846291,-500.0,0.00046575,120]
[407693728,1772683846301,-500.0,0.00046575,120]
[407693729,1772683846311,-500.0,0.00046575,120]
[407693730,1772683846323,-500.0,0.00046575,120]
[407693731,1772683846332,-500.0,0.00046575,120]
[407693732,1772683846342,-151.0,0.00046575,120]
[407693733,1772683846351,-500.0,0.00046575,120]
[407693734,1772683846362,-500.0,0.00046575,120]
[407693735,1772683846372,-500.0,0.00046575,120]
[407693736,1772683846381,-500.0,0.00046575,120]
[407693737,1772683846392,-496.56962245,0.00046575,120]
[407693738,1772683846403,-214.767157,0.00046575,31]
[407693739,1772683846413,-500.0,0.00046575,120]
[407693740,1772683846422,-500.0,0.00046575,120]
[407693741,1772683846432,-500.0,0.00046575,120]
[407693742,1772683846441,-500.0,0.00046575,120]
[407693743,1772683846450,-500.0,0.00046575,120]
[407693744,1772683846460,-154.1769975,0.00046575,120]
[407693745,1772683846470,-334.42258482,0.00046575,120]
[407693746,1772683846480,-522.02498007,0.00046575,120]
[407693747,1772683846490,-244.14747726,0.00046575,120]
[407693748,1772683846499,-500.0,0.00046575,120]